Cogmind - Beta 16 @@@ ROGUE MODE // 2025.12.28 @ 23:39:32 Player: Zaros426 Result: Destroyed by FD-8I9(R) with Subdweller Machine Gun Performance ------------- Evolutions (0) 0 Regions Visited (3) 600 Robots Destroyed (51) 255 Value Destroyed (829) 829 Prototype IDs (3) 60 Alien Tech Used (0) 0 Bonus (-26) -26 TOTAL SCORE: 1718 Bonus ------- Friendly Fire -26 Cogmind --------- Core Integrity 0/250 Matter 181/300 Energy 92/100 System Corruption 0% Temperature Cool (0) Movement Treading (490) Ox4 Location -10/Subcaves Parts ------- > --- POWER (1) -------- (None) > --- PROPULSION (2) --- Armored Treads > --- UTILITY (2) ------ Huge Storage Unit Structural Scanner > --- WEAPON (2) ------- Barrage Gun Flak Cannon > --- INVENTORY (25) --- Light Treads Compact Wheel Heat Sink Cargo Storage Unit High-capacity Battery (250) High-capacity Matter Pod (0) Improved Signal Interpreter Improved Terrain Scanner Seismic Detector Transport Network Coupler Recoil Stabilizer Improved Power Shielding Heavy Armor Plating Assault Rifle Light Cannon Subdweller Shrapnel Launcher Mining Laser Multitool Peak State ------------ > --- POWER ------------ Ion Engine > --- PROPULSION ------- Light Treads Armored Treads > --- UTILITY ---------- Huge Storage Unit Light Armor Plating > --- WEAPON ----------- Flak Cannon Improved Grenade Launcher > --- INVENTORY -------- Light Treads Light Treads Compact Wheel Heat Sink Cargo Storage Unit High-capacity Battery High-capacity Matter Pod Structural Scanner Improved Signal Interpreter Improved Terrain Scanner Seismic Detector Transport Network Coupler Recoil Stabilizer Improved Power Shielding Heavy Armor Plating Particle Gun Assault Rifle Light Cannon Mining Laser [Rating: 16] Favorites ----------- Power Light Ion Engine Engine Light Ion Engine Propulsion Light Treads Treads Light Treads Wheel Compact Wheel Utility Huge Storage Unit Device Seismic Detector Storage Huge Storage Unit Protection Light Armor Plating Weapon Assault Rifle Energy Gun EM Pulse Gun Ballistic Gun Assault Rifle Ballistic Cannon Flak Cannon Launcher Improved Grenade Launcher Special Weapon Mining Laser Build | -11 -10 -10 -10 ------- Run | Yrd Mat Min Sub Slots Evolved . | . . . . Power . | . . . . Propulsion . | . . . . Utility . | . . . . Weapon . | . . . . Parts Attached 29 | 6 5 11 7 Power 2 | 1 . 1 . Engine 2 | 1 . 1 . Core . | . . . . Reactor . | . . . . Propulsion 7 | 2 . 3 2 Treads 5 | 2 . 1 2 Leg . | . . . . Wheel 2 | . . 2 . Hover . | . . . . Flight . | . . . . Utility 8 | 1 2 4 1 Device 3 | . 1 1 1 Storage 2 | 1 1 . . Processor . | . . . . Hackware . | . . . . Protection 3 | . . 3 . Artifact . | . . . . Weapon 12 | 2 3 3 4 Energy Gun 2 | . . 1 1 Energy Cannon . | . . . . Ballistic Gun 3 | 2 . . 1 Ballistic Cannon 2 | . . 1 1 Launcher 3 | . 2 1 . Special Weapon 2 | . 1 . 1 Impact Weapon . | . . . . Slashing Weapon . | . . . . Piercing Weapon . | . . . . Special Melee Weapon . | . . . . Unidentified Prototypes . | . . . . Parts Lost 12 | . 1 7 4 Power 2 | . . 1 1 Propulsion 3 | . . 1 2 Utility 2 | . . 2 . Weapon 5 | . 1 3 1 Highest Loss Streak 2 | . 1 2 2 To Critical Strikes . | . . . . Average Backups 15 | 1 10 18 17 Power . | . . . . Propulsion 3 | . 2 4 2 Utility 8 | . 4 10 11 Weapon 3 | 1 3 2 4 Tool/Special . | . . . . Unused Backups 13 | . 1 . 12 Power . | . . . . Propulsion 1 | . . . 1 Utility 10 | . . . 10 Weapon 2 | . 1 . 1 Tool/Special . | . . . . Average Slot Usage (%) 95 | . 99 94 92 Engine 10 | . 14 9 7 Treads 26 | . 28 24 27 Wheel 1 | . . 2 . Device 8 | . 14 . 13 Storage 14 | . 14 14 14 Protection 5 | . . 13 . Ballistic Gun 9 | . 19 6 2 Ballistic Cannon 7 | . . 9 14 Launcher 8 | . 7 9 7 Special Weapon 1 | . . . 3 Peak Build Rating 16 | 6 8 14 16 Average Rating 11 | 5 7 11 14 On Entrance 7 | . 6 8 14 Avg Prop Armor Cover (%) . | . . . . Naked Turns . | . . . . Heaviest Build 100 | 12 90 100 100 Greatest Support 40 | 40 40 40 40 Greatest Overweight (x) 4 | . 2 2 4 Average Overweight (x) 1 | . 1 2 2 Largest Inventory Capacity 25 | 8 25 25 25 Average Capacity 23 | 7 20 25 25 Most Carried 23 | 4 17 23 23 Average Carried 16 | 1 10 19 19 Final Capacity 25 | 8 25 25 25 Final Carried 23 | 4 17 23 20 Class Distribution -------------------- 100% | Mutant Dominant Class ---------------- Mutant | -10/Materials Mutant | -10/Mines Mutant | -10/Subcaves Resources | -11 -10 -10 -10 ----------- Run | Yrd Mat Min Sub Matter Collected 2008 | 356 593 789 270 Remotely . | . . . . Salvage Created 1350 | 200 807 316 27 Parts 90 | 18 50 19 3 Haulers Intercepted 2 | . 2 . . Recyclers Shooed 4 | 1 2 1 . Parts Field Recycled . | . . . . Retrieved Matter . | . . . . Parts Self-Destructed 14 | . . . 14 Prevented . | . . . . Parts Restored . | . . . . Kills | -11 -10 -10 -10 ------- Run | Yrd Mat Min Sub Combat Hostiles Destroyed 44 | . 14 26 4 Guns 11 | . . 11 . Cannons 6 | . . 3 3 AOE 27 | . 14 12 1 Classes Destroyed 12 | 3 5 2 2 Worker 3 | 1 2 . . Builder 3 | . 3 . . Tunneler 8 | 5 . 3 . Hauler 2 | . 2 . . Recycler 7 | 1 5 1 . Watcher 3 | . 3 . . Swarmer 14 | . 6 6 2 Grunt 8 | . 8 . . Demolisher 1 | . . 1 . Artisan 1 | . . . 1 Subdweller 2 | . . . 2 Assembled 19 | . . 19 . Best Kill Streak 8 | 3 8 4 2 Combat Bots Only 4 | . 3 4 2 Max Kills in Single Turn 3 | 1 2 3 1 Gunslinging . | . . . . Exploded 2 | . 2 2 1 Melee . | . . . . Uniques/NPCs Destroyed . | . . . . Combat | -11 -10 -10 -10 -------- Run | Yrd Mat Min Sub Hostile Shots Fired 147 | . 25 67 55 Missed 41 | . 10 14 17 Hits 106 | . 15 53 38 Melee 8 | . . 8 . Projectile 98 | . 15 45 38 AOE 3 | . . 3 . Critical Strikes 1 | . . . 1 Damage Taken 2002 | . 207 991 804 Core 258 | . 40 106 112 Absorbed by Shields . | . . . . Regen/Repaired (Parts) 30 | . 30 . . Core Remaining (%) 100 | 100 . . . Volleys Fired 174 | 16 54 61 43 Largest 2 | 2 2 2 2 Hottest 102 | 40 100 73 102 Shots Fired 286 | 32 99 99 56 Gun 179 | 32 68 71 8 Cannon 42 | . . 8 34 Launcher 51 | . 28 20 3 Special 14 | . 3 . 11 Kinetic 186 | 32 68 49 37 Thermal 19 | . 3 . 16 Explosive 51 | . 28 20 3 Electromagnetic 30 | . . 30 . Robot Hit Streak 24 | 9 10 5 24 Robot Miss Streak 8 | 2 4 8 3 Penetration Max . | . . . . Secondary Targets 2 | . . 2 . Max Gunslinging Chain 1 | . . 1 . Shots Hit Robots 150 | 20 52 45 33 Core Hits 111 | 8 38 54 11 Critical Kills . | . . . . Critical Parts Destroyed . | . . . . Critical Strikes . | . . . . Melee Attacks . | . . . . Impact . | . . . . Slashing . | . . . . Piercing . | . . . . Sneak Attacks . | . . . . Combat Hostiles . | . . . . Follow-up Attacks . | . . . . Damage Inflicted 4063 | 248 1551 1554 710 Guns 1288 | 248 569 429 42 Cannons 379 | . . 99 280 Explosions 2372 | . 982 1026 364 Melee . | . . . . Ramming . | . . . . Kinetic 1500 | 248 569 361 322 Thermal 60 | . . 36 24 Explosive 2336 | . 982 990 364 Electromagnetic 167 | . . 167 . Impact . | . . . . Slashing . | . . . . Piercing . | . . . . Highest Corruption . | . . . . Average Corruption . | . . . . Corruption Purged . | . . . . Corruption Blocked . | . . . . Overload Shots . | . . . . Overflow Damage 169 | . 17 69 83 Projectiles 3 | . . . 3 Explosions 166 | . 17 69 80 Melee . | . . . . Knockbacks 13 | . . 2 11 Impact . | . . . . Kinetic 13 | . . 2 11 Secondary . | . . . . Self-Inflicted Damage 282 | . 55 89 138 Shots 8 | . 3 2 3 Rammed . | . . . . Targets Rammed . | . . . . Kicked . | . . . . Crushed . | . . . . Highest Temperature 60 | . 60 42 . Average Temperature 17 | . 21 13 . Received Heat Transfer 216 | . 66 6 144 Siege Activations . | . . . . Martial Activations . | . . . . Shielding Activations . | . . . . Robots Disrupted . | . . . . Combat Hostiles . | . . . . Robots Corrupted . | . . . . Combat Hostiles . | . . . . Parts Fried . | . . . . Impact Corruptions . | . . . . Robots Melted . | . . . . Combat Hostiles . | . . . . Parts Melted . | . . . . Heat Transferred 100 | . . 50 50 Parts Sabotaged . | . . . . Parts Stolen . | . . . . Parts Stripped . | . . . . Power Chain Reactions . | . . . . Alert | -11 -10 -10 -10 ------- Run | Yrd Mat Min Sub Maximum Alert Level 1 | . 1 . . Low Security (%) 77 | 100 47 100 . Level 1 22 | . 52 . . Level 2 . | . . . . Level 3 . | . . . . Level 4 . | . . . . Level 5 . | . . . . High Security . | . . . . Max Security . | . . . . Peak Influence 308 | 10 308 93 . Initial 93 | . . 93 . Average 90 | 2 186 19 . Influence Increases 1264 | 35 786 313 130 Destroy 0b10 Robot/C 460 | . 280 140 40 Destroy 0b10 Robot/NC 130 | 35 75 20 . Destroy Leader 100 | . 70 30 . Successful Hack 30 | . 30 . . Select Force Hacks 60 | . 60 . . Disable Machine 135 | . 105 30 . Destroy Structure 259 | . 166 93 . Lose Combat Pursuer 90 | . . . 90 Influence Decreases 1264 | 35 545 492 192 Entered New Map 181 | . . 148 33 Time Decay 1033 | 35 535 304 159 Lost Part 50 | . 10 40 . Squads Dispatched 4 | . 3 1 . Investigation 4 | . 3 1 . Extermination . | . . . . Reinforcement . | . . . . Assault . | . . . . Garrison . | . . . . Intercept . | . . . . Searches Triggered . | . . . . Construction Impeded . | . . . . Haulers Reinforced . | . . . . Active Scanning Responses . | . . . . Cargo Convoy Interrupts . | . . . . Stealth | -11 -10 -10 -10 --------- Run | Yrd Mat Min Sub Distress Signals . | . . . . Communications Jammed . | . . . . Distress Signals . | . . . . Times Spotted 52 | . 15 29 8 Peak Tracking Total 4 | . 4 4 3 Tactical Retreats 4 | . . 3 1 Traps | -11 -10 -10 -10 ------- Run | Yrd Mat Min Sub Traps Triggered 1 | . 1 . . Indirectly . | . . . . Trap Hack Attempts . | . . . . Triggered . | . . . . Disarmed . | . . . . Reprogrammed . | . . . . Reused . | . . . . Traps Extracted . | . . . . Installed . | . . . . Triggered . | . . . . Machines | -11 -10 -10 -10 ---------- Run | Yrd Mat Min Sub Machines Disabled 10 | . 8 2 . Max in Single Turn 2 | . 2 1 . Machines Repaired . | . . . . Machines Dismantled . | . . . . Machines Sabotaged . | . . . . Overloaded Fab Kills . | . . . . Hacking | -11 -10 -10 -10 --------- Run | Yrd Mat Min Sub Machines Accessed 12 | . 10 1 1 Terminals 7 | . 7 . . Fabricators . | . . . . Repair Stations 1 | . 1 . . Recycling Units 2 | . 2 . . Scanalyzers . | . . . . Garrison Access . | . . . . Total Hacks 29 | . 27 1 1 Successful 17 | . 15 1 1 Failed 12 | . 12 . . Catastrophic 1 | . 1 . . Database Lockouts . | . . . . Manual 16 | . 16 . . Terminals 23 | . 23 . . Fabricators . | . . . . Repair Stations 2 | . 2 . . Recycling Units 2 | . 2 . . Scanalyzers . | . . . . Garrison Access . | . . . . Terminal Hacks 7 | . 5 1 1 Robot Analysis 3 | . 3 . . Prototype ID Bank 2 | . 2 . . Open Door 2 | . . 1 1 Fabricator Hacks . | . . . . Repair Station Hacks 2 | . 2 . . Scan Component 1 | . 1 . . Repair 1 | . 1 . . Recycling Unit Hacks . | . . . . Scanalyzer . | . . . . Garrison Access Hacks . | . . . . Unauthorized Hacks 8 | . 8 . . Terminals 6 | . 6 . . Botnet 1 | . 1 . . Skim 5 | . 5 . . Fabricators . | . . . . Repair Stations . | . . . . Recycling Units 2 | . 2 . . Tunnel 2 | . 2 . . Scanalyzers . | . . . . Garrison Access . | . . . . Data Cores Recovered . | . . . . Used . | . . . . Hacking Detections 8 | . 8 . . Full Trace Events . | . . . . Feedback Events . | . . . . Feedback Blocked . | . . . . Robot Schematics Acquired . | . . . . Robots Built . | . . . . Authchips . | . . . . Time . | . . . . Total Robot Build Rating . | . . . . Part Schematics Acquired . | . . . . Parts Built . | . . . . Authchips . | . . . . Time . | . . . . Total Part Build Rating . | . . . . Part Studies Acquired . | . . . . Parts Repaired 1 | . 1 . . Time 26 | . 26 . . Parts Recycled . | . . . . Recycled Matter . | . . . . Retrieved Matter . | . . . . Retrieved Components . | . . . . Parts Scanalyzed . | . . . . Part Schematics Acquired . | . . . . Parts Damaged . | . . . . Bothacking | -11 -10 -10 -10 ------------ Run | Yrd Mat Min Sub Used RIF Installer . | . . . . Robots Hacked . | . . . . Non-combat . | . . . . Combat . | . . . . Robot Hacks Applied . | . . . . Relay Couplers Released . | . . . . Fabnet Peak Effective % . | . . . . Robots Rewired . | . . . . Allies Hacked . | . . . . Hacks Repelled . | . . . . Allies | -11 -10 -10 -10 -------- Run | Yrd Mat Min Sub Total Allies . | . . . . Largest Group . | . . . . Highest-Rated Group . | . . . . Highest-Rated Ally . | . . . . Total Orders . | . . . . Ally Attacks . | . . . . Total Damage . | . . . . Kills . | . . . . Allies Corrupted . | . . . . Allies Melted . | . . . . Intel | -11 -10 -10 -10 ------- Run | Yrd Mat Min Sub Active Infowar (turns) 4458 | . 2413 36 2009 Structural 1905 | . . . 1905 Seismic 2553 | . 2413 36 104 Robot Analysis Total 3 | . 3 . . Derelict Logs Recovered 2 | . . . 2 Drone Launches . | . . . . Drone Recoveries . | . . . . Exploration | -11 -10 -10 -10 ------------- Run | Yrd Mat Min Sub Turns Passed 7742 | 143 2413 3093 2093 Spaces Moved 2429 | 54 816 989 570 Core 3 | 3 . . . Treads 2254 | 51 816 817 570 Legs . | . . . . Wheels 172 | . . 172 . Hover . | . . . . Flight . | . . . . Fastest Speed 50 | 50 160 130 320 Average Speed 281 | 153 251 286 325 Slowest Speed 490 | 160 320 320 490 Overloaded Moves . | . . . . Propulsion Burnouts . | . . . . Robots Hopped . | . . . . Potential Cave-ins . | . . . . Cave-ins Triggered . | . . . . Exploration Rate (%) 56 | 4 98 100 25 Regions Visited 3 Branch Regions 2 Pre-discovered Areas 2 | . 2 . . Known Exits Taken 1 | . 1 . . Unknown Exits Taken 2 | 1 . 1 . Scrap Searched 2 | . . 2 . Spaces Dug 79 | . 51 . 28 Terrain Destroyed 379 | . 194 152 33 Melee . | . . . . Projectile 2 | . 2 . . AOE 377 | . 192 152 33 Terrain Rammed . | . . . . Walls Destroyed . | . . . . Machines Disabled . | . . . . Actions | -11 -10 -10 -10 --------- Run | Yrd Mat Min Sub Total 3018 | 79 1066 1140 733 Wait 314 | . 159 60 95 Move 2426 | 53 815 988 570 Hop . | . . . . Pick Up 37 | 4 19 10 4 Fast Attach 7 | 6 . 1 . Attach 14 | . 2 6 6 Detach 1 | . . . 1 Swap 36 | . 14 13 9 Drop 9 | . 3 1 5 Fire 174 | 16 54 61 43 Melee . | . . . . Ram . | . . . . Kick . | . . . . Crush . | . . . . Escape Stasis . | . . . . Rewire . | . . . . Trap . | . . . . Miscellaneous . | . . . . Route ------- -11/Scrapyard -10/Materials (discovered 5 exits: *Mat x3 / *Min x2) -10/Mines (discovered 3 exits: *Mat x2 / *Sub) -10/Subcaves (discovered 3 exits: *Mat / [Rec] / [*Scr]) History --------- Turn | Location | Event 6 | -11/Scrapyard | Discovered new exit (range 15) 144 | -11/Scrapyard | Entered Materials 317 | -10/Materials | Build established: Mutant 366 | -10/Materials | Discovered new exit (range 8) 764 | -10/Materials | Discovered new exit (range 10) 1092 | -10/Materials | Discovered new exit (range 14) 1092 | -10/Materials | Discovered new exit (range 10) 1260 | -10/Materials | Learned Storage emergency access door positions 1309 | -10/Materials | Identified exit to Mines 1350 | -10/Materials | Learned 4 Subcaves zone layouts 1383 | -10/Materials | Learned Storage interactive machine intel 1424 | -10/Materials | Learned Storage machine intel 1473 | -10/Materials | Identified exit to Materials 2485 | -10/Materials | Repaired Hcp. Matter Pod 2557 | -10/Materials | Entered Mines 2735 | -10/Mines | Discovered exit to Materials (range 5) 3035 | -10/Mines | Assembled infested the area 3040 | -10/Mines | Assisted by a Guerilla fighting off Assembled 3413 | -10/Mines | Core integrity fell below 50% 3471 | -10/Mines | Discovered exit to Materials (range 8) 3497 | -10/Mines | Met a Derelict shopkeep closing up shop 5613 | -10/Mines | Discovered new exit (range 13) 5650 | -10/Mines | Entered Subcaves 5651 | -10/Subcaves | Approached by a straggling Scientist 6210 | -10/Subcaves | Discovered new exit (range 15) 6323 | -10/Subcaves | Identified exit to Materials 6362 | -10/Subcaves | Learned 2 Materials zone layouts 6827 | -10/Subcaves | Scientist uncovered a shortcut to Scraptown 6852 | -10/Subcaves | Shifting Twisted Machinery released Barrage Gun 6939 | -10/Subcaves | Shifting Twisted Machinery released Sub. Shrapnel Launcher 7439 | -10/Subcaves | A swath of the cavern ceiling suddenly collapsed 7716 | -10/Subcaves | Ambushed by angry Subdweller bent on revenge 7730 | -10/Subcaves | Core integrity fell below 20% 7743 | -10/Subcaves | Destroyed by FD-8I9(R) with Subdweller Machine Gun Last Messages --------------- Sub. Shrapnel Launcher falls loose from the Twisted Machinery. 06984_ Acquired Sub. Shrapnel Launcher. 07017_ QX-BAL(u) tweaks Twisted Machinery. 07019_ QX-BAL(u) builds Twisted Machinery. 07409_ Dropped Imp. Grenade Launcher. 07426_ Subatomizers dissect the Imp. Grenade Launcher, destroying it. 07428_ Dropped Hcp. Matter Pod. 07429_ Extracted 200 matter. 07430_ Acquired Hcp. Matter Pod. A swath of the cavern ceiling suddenly collapses. 07660_ QX-BAL(u) builds Twisted Machinery. 07702_ QX-BAL(u) cries out in pain. 07702_ QX-BAL(u) destroyed. 07713_ Acquired Multitool. 07715_ Subatomizers dissect the Wheel. 07717_ FD-8I9(R): "SUBMAD!" 07719_ FD-8I9(R) knocked back. 07729_ Subatomizers dissect the Wheel. 07739_ Lgt. Treads destroyed. 07741_ Subatomizers dissect the Wheel. Map ----- +----------------------------------------------------+ | ##??# #???????????????????????????????????????? | | ###??## ???????????????????????????????????????? | | ###???# ???????????????????????????????????????? | | ??##### #??????????????????????????########?????? | | ?## # #????????????????????????#########"?????? | | ?# #????????????????????????####""""#"?????? | | ?## # ####????????????????????????###"""""#"?????? | | ## ##???????????????????????????##""##""##"????? | | ### ###???????????????????????????###""##""##????? | | ###???????????????????????????####"######????? | | ##????????????????????????????###"######????? | | > ##?????????????????????????????##""######???? | | ##??????????????????????????????### ######???? | | ##???????????????????????????????##""""# ##???? | | ##???????????????????????????????### ##"###???? | | ######???????????????????????????####"" #####?? | | ######???????????????????????????###"# ####?? | | ##????????????????????????????#### ##?? | | ##???????????????????????????###### ##?? | | ##??????????????????????????####### ##?? | | "" ##??????????????????????????### ## ##?? | | "" ###########?????########????## ## ##?? | | ################################# ## ###?? | | # ###### "######### ########## ###?? | | #### ## ""## "" ## #### ###??? | | " # """""R = @ ## #####??? | | # """"" ####"" ####???? | | # " " """###### ### ##?????? | | # ### " ##### #### ##?????? | | #### " ## ###" #### ######## | | ##" " ### ##"" ### ### ######## | | # "" ""#### ###" " ## ##### # # # | | ## " """#### "#### " ##### | | ##### """######### ###### | | ########### " #####" ### # | | ???######### ### ### ####### | | ??????????######## ####### ###### | | ???????????####### ################# ## ##???? | | ????????????????################???###########???? | | ????????????????######??????????????##########???? | | ?????????????????????????????????????????????????? | | ?????????????????????????????????????????????????? | | ?????????????????????????????????????????????????? | | ?????????????????????????????????????????????????? | | ?????????????????????????????????????????????????? | | ?????????????????????????????????????????????????? | | ?????????????????????????????????????????????????? | | ?????????????????????????????????????????????????? | | ?????????????????????????????????????????????????? | | ?????????????????????????????????????????????????? | +----------------------------------------------------+ Best States ------------- Heat Dissipation 25 Energy Generation 10 Energy Capacity 250 Matter Stores 300 Matter Capacity 300 Sight Range 16 Terrain Scan Density 10 Armor Coverage 150 Evasion (%) 40 Recoil Reduction 2 Item Schematics ----------------- None Robot Schematics ------------------ None Fabricated ------------ Nothing Repaired ---------- Hcp. Matter Pod | 33% | -10/Materials Studied --------- None Alien Tech Used ----------------- None Achievements -------------- Exterminator Nice Directions, Buddy Challenges ------------ None Game ------ Seed PropulsionTiamatTearclaws Manual? 0 Play Time 00:26:41 Cumulative 63.6 hours Start 2025.12.28 @ 23:15:01 End 2025.12.28 @ 23:39:32 Sessions 1 Manual Loads 0 Difficulty Rogue Special Mode None Game No. 25 Rogue 25 Adventurer 0 Explorer 0 Win Type - Total 0 Types 0/0/0/0/0/0/0/0/0/0 Lore% 50 Gallery% 55 Achievement% 50 Wizard Run 0 Options --------- Layout 0 ASCII 0 Keyboard 0 Movement Mouse Keybinds 0 Fullscreen 1 Font 24/Smallcaps Map View 183x50 Zoom Use 0% Tactical HUD 1 Map Filters NONE Filters NONE Steam 1 RUN: d74280cd-f6e5-4952-829b-934a17f7e446